bitfinex/quotes_BTCUSD_20250206
["timestamp","ask_amount","ask_price","bid_price","bid_amount"]
[1738860553408,0.53551,96847.0,96846.0,0.08191895]
[1738860553551,0.52551,96847.0,96841.0,0.3241]
[1738860553950,0.52551,96847.0,96845.0,0.154886]
[1738860554161,0.52551,96847.0,96846.0,0.001]
[1738860554583,0.52551,96847.0,96841.0,0.3241]
[1738860554584,0.52551,96847.0,96843.0,0.154889]
[1738860554789,0.52551,96847.0,96841.0,0.478991]
[1738860554998,0.52551,96847.0,96841.0,0.3241]
[1738860555465,0.52651,96847.0,96845.0,0.154885]
[1738860555773,0.52651,96847.0,96844.0,0.154887]
[1738860555976,0.52851,96847.0,96845.0,0.154886]
[1738860556250,0.52851,96847.0,96841.0,0.3241]
[1738860556452,0.52551,96847.0,96841.0,0.3241]
[1738860556892,0.52751,96847.0,96842.0,0.538]
[1738860557094,0.01,96846.0,96842.0,0.538]
[1738860557296,0.52603,96846.0,96842.0,0.538]
[1738860558450,0.51603,96846.0,96842.0,0.538]
[1738860559551,0.51603,96846.0,96841.0,0.3241]
[1738860559865,0.01,96843.0,96841.0,0.3241]
[1738860560237,0.01,96831.0,96825.0,0.3241]
[1738860560460,0.01,96826.0,96825.0,0.3241]
[1738860560637,0.52603,96826.0,96825.0,0.3241]
[1738860561152,0.680947,96826.0,96825.0,0.3241]
[1738860562124,0.52903,96826.0,96825.0,0.3241]
[1738860562838,0.53503,96826.0,96825.0,0.3251]
[1738860563069,0.52903,96826.0,96825.0,0.3241]
[1738860563421,0.53703,96826.0,96825.0,0.3251]
[1738860563747,0.691947,96826.0,96825.0,0.001]
[1738860564087,0.01,96820.0,96819.0,0.00013912]
[1738860564360,1.14141815,96820.0,96819.0,0.00013912]
[1738860564563,1.33691815,96820.0,96819.0,0.00013912]
[1738860565004,0.154944,96809.0,96808.0,0.00022428]
[1738860565206,0.86617765,96809.0,96808.0,0.00068828]
[1738860566449,0.86717765,96809.0,96808.0,0.00068828]
[1738860566659,0.87117765,96809.0,96808.0,0.00068828]
[1738860567296,0.87617765,96809.0,96808.0,0.00168828]
[1738860568054,0.88565765,96809.0,96808.0,0.00168828]
[1738860568269,1.03465765,96809.0,96808.0,0.00168828]
[1738860568670,1.03565765,96809.0,96808.0,0.00168828]
[1738860568870,1.02665765,96809.0,96808.0,0.00068828]
[1738860569074,0.70123365,96809.0,96808.0,0.00068828]
[1738860569290,0.60873,96809.0,96808.0,0.15563328]
[1738860569503,0.52403,96809.0,96808.0,0.15563328]
[1738860569729,0.52403,96809.0,96808.0,0.00068828]
[1738860569944,0.52203,96809.0,96808.0,0.00068828]
[1738860570326,0.51803,96809.0,96808.0,0.00068828]
[1738860570551,0.51803,96809.0,96808.0,0.26319193]
[1738860570927,0.51803,96809.0,96808.0,0.82419193]
[1738860571492,0.51603,96809.0,96808.0,0.82419193]
[1738860572231,0.51603,96809.0,96808.0,0.80119193]
[1738860572438,0.51603,96809.0,96808.0,0.79119193]
[1738860572631,0.51603,96809.0,96808.0,0.80519193]
[1738860572988,0.51603,96809.0,96808.0,0.79519193]
[1738860573206,0.51603,96809.0,96808.0,0.79119193]
[1738860573536,0.51603,96809.0,96808.0,0.80319193]
[1738860573871,0.51703,96809.0,96808.0,0.79319193]
[1738860574290,0.51703,96809.0,96808.0,1.11729193]
[1738860574462,0.51703,96809.0,96808.0,0.86478828]
[1738860574670,0.51703,96809.0,96808.0,0.86278828]
[1738860575072,0.51603,96809.0,96808.0,0.86478828]
[1738860575555,0.51603,96809.0,96808.0,0.86278828]
[1738860575900,0.51603,96809.0,96808.0,0.86378828]
[1738860576751,0.51603,96809.0,96808.0,0.86278828]
[1738860576947,0.51603,96809.0,96808.0,0.32478828]
[1738860577300,0.576303,96809.0,96808.0,0.32478828]
[1738860577509,0.586303,96809.0,96808.0,0.32478828]
[1738860578142,0.586303,96809.0,96808.0,0.32578828]
[1738860578553,0.52603,96809.0,96808.0,0.32478828]
[1738860578754,0.52603,96809.0,96808.0,0.32578828]
[1738860579383,0.51603,96809.0,96808.0,0.48073328]
[1738860580809,0.51603,96809.0,96808.0,1.12123693]
[1738860581982,0.51603,96809.0,96808.0,1.22123693]
[1738860582396,0.51603,96809.0,96808.0,1.24423693]
[1738860583130,0.41334385,96809.0,96808.0,1.25423693]
[1738860583330,0.25013501,96809.0,96808.0,1.25423693]
[1738860583737,0.21347462,96809.0,96808.0,1.25423693]
[1738860584382,0.21447462,96809.0,96808.0,1.25423693]
[1738860584597,0.0001068,96847.0,96846.0,0.154885]
[1738860584916,0.0001068,96847.0,96846.0,0.692885]
[1738860585456,0.5163868,96847.0,96846.0,0.692885]
[1738860585860,0.5168508,96847.0,96846.0,0.692885]
[1738860586489,0.5168508,96847.0,96846.0,0.538]
[1738860586805,0.5268508,96847.0,96846.0,0.538]
[1738860587234,0.5278508,96847.0,96846.0,0.538]
[1738860587440,0.5278508,96847.0,96846.0,0.692885]
[1738860587779,0.5308508,96847.0,96846.0,0.538]
[1738860588209,0.5318508,96847.0,96846.0,0.538]
[1738860588657,0.5308508,96847.0,96846.0,0.54830698]
[1738860589052,0.01,96833.0,96832.0,0.27478828]
[1738860589252,0.52628,96833.0,96832.0,0.27478828]
[1738860589779,0.65238,96833.0,96832.0,0.27478828]
[1738860590331,0.65238,96833.0,96832.0,0.27878828]
[1738860590726,0.65238,96833.0,96832.0,0.004]
[1738860591317,0.65238,96833.0,96830.0,0.538]
[1738860591491,0.65238,96833.0,96832.0,0.004]
[1738860591867,0.65238,96833.0,96832.0,0.005]
[1738860592289,0.872523,96833.0,96832.0,0.005]
[1738860592489,0.872523,96833.0,96832.0,0.004]
[1738860592652,0.807285,96833.0,96832.0,0.004]
[1738860592855,0.164909,96831.0,96830.0,0.538]
[1738860593095,0.09,96812.0,96803.0,0.538]
[1738860593301,0.60628,96812.0,96803.0,0.692953]
[1738860593632,0.60628,96812.0,96806.0,0.01035928]
[1738860594361,0.60628,96812.0,96811.0,0.27678828]
[1738860594785,0.60628,96812.0,96811.0,0.27778828]
[1738860595939,0.60628,96812.0,96811.0,0.27578828]
[1738860596337,0.60728,96812.0,96811.0,0.27578828]
[1738860597086,0.60728,96812.0,96811.0,0.27478828]
[1738860597286,0.65268,96812.0,96811.0,0.27478828]
[1738860597489,0.83868528,96812.0,96811.0,0.27478828]
[1738860598421,0.94118893,96812.0,96811.0,0.27478828]
[1738860598778,0.78624993,96812.0,96811.0,0.27478828]
[1738860599300,0.68374628,96812.0,96811.0,0.42972928]
[1738860599643,0.60728,96812.0,96811.0,0.42972928]
[1738860599927,0.60728,96812.0,96811.0,0.27478828]
[1738860601176,0.761219,96812.0,96811.0,0.27478828]
[1738860602149,0.89478543,96812.0,96811.0,0.27478828]
[1738860602350,0.62734278,96812.0,96811.0,0.27478828]
[1738860602701,0.62734278,96812.0,96811.0,0.692941]
[1738860602702,0.51728,96812.0,96811.0,0.692941]
[1738860603011,0.51728,96812.0,96811.0,0.849648]
[1738860603012,0.51628,96812.0,96811.0,0.849648]
[1738860603400,0.51728,96812.0,96811.0,0.80582569]
[1738860603602,0.51628,96812.0,96811.0,0.80582569]
[1738860604010,0.51728,96812.0,96811.0,0.80982569]
[1738860604185,0.51628,96812.0,96811.0,0.80582569]
[1738860604593,0.51628,96812.0,96811.0,0.80782569]
[1738860604758,0.51628,96812.0,96811.0,0.80882569]
[1738860605174,0.51628,96812.0,96811.0,0.70632204]
[1738860605375,0.52628,96812.0,96811.0,0.70532204]
[1738860605574,0.52628,96812.0,96811.0,0.70654632]
[1738860606202,0.52628,96812.0,96811.0,0.70454632]
[1738860606577,0.52628,96812.0,96811.0,0.70854632]
[1738860606940,0.52628,96812.0,96811.0,0.70354632]
[1738860607152,0.52628,96812.0,96811.0,0.70454632]
[1738860607331,0.52628,96812.0,96811.0,0.70654632]
[1738860607529,0.52628,96812.0,96811.0,0.70454632]
[1738860607754,0.52628,96812.0,96811.0,0.70354632]
[1738860607906,0.52628,96812.0,96811.0,0.70454632]
[1738860608107,0.52628,96812.0,96811.0,0.70654632]
[1738860608536,0.52628,96812.0,96811.0,0.70554632]
[1738860608733,0.52628,96812.0,96811.0,0.70654632]
[1738860609277,0.52628,96812.0,96811.0,0.55160532]
[1738860609478,0.67581248,96812.0,96811.0,0.27801256]
[1738860609642,0.83075148,96812.0,96811.0,0.27801256]
[1738860609838,0.964358,96812.0,96811.0,0.00122428]
[1738860610058,1.114358,96812.0,96811.0,0.00122428]
[1738860610297,1.12470438,96812.0,96811.0,0.00222428]
[1738860610497,1.12470438,96812.0,96811.0,0.00022428]
[1738860610850,1.1024719,96812.0,96811.0,0.00022428]
[1738860611051,0.384153,96803.0,96800.0,4e-05]
[1738860611278,1.08113952,96803.0,96800.0,4e-05]
[1738860612063,1.09113952,96803.0,96800.0,4e-05]
[1738860613325,1.09313952,96803.0,96800.0,4e-05]
[1738860613806,0.93918652,96803.0,96800.0,4e-05]
[1738860614010,1.09413952,96803.0,96800.0,4e-05]
[1738860614250,1.19664317,96803.0,96800.0,4e-05]
[1738860614812,1.04169017,96803.0,96800.0,4e-05]
[1738860615012,0.94862652,96803.0,96800.0,4e-05]
[1738860615218,1.10357952,96803.0,96800.0,4e-05]
[1738860616891,0.94862652,96803.0,96800.0,4e-05]
[1738860617690,0.78918652,96803.0,96800.0,4e-05]
[1738860617904,0.60848,96803.0,96802.0,0.15517907]
[1738860618107,0.51928,96803.0,96802.0,0.15517907]
[1738860619340,0.51728,96803.0,96802.0,0.15517907]
[1738860619525,0.51628,96803.0,96802.0,0.15517907]
[1738860619724,0.51828,96803.0,96802.0,0.25768272]
[1738860619989,0.51728,96803.0,96802.0,0.25768272]
[1738860620342,0.51728,96803.0,96802.0,0.25868272]
[1738860620545,0.51628,96803.0,96802.0,0.25768272]
[1738860620746,0.52628,96803.0,96802.0,0.00022407]
[1738860620949,0.60288,96803.0,96802.0,0.00222407]
[1738860621375,0.60288,96803.0,96802.0,0.15617907]
[1738860621540,0.60288,96803.0,96802.0,0.00122407]
[1738860622106,0.60288,96803.0,96802.0,0.15617907]
[1738860622250,0.52628,96803.0,96802.0,0.15617907]
[1738860622611,0.52628,96803.0,96802.0,0.15517907]
[1738860622893,0.52728,96803.0,96802.0,0.15617907]
[1738860623054,0.52728,96803.0,96802.0,0.00022407]
[1738860623255,0.52828,96803.0,96802.0,0.15517907]
[1738860624054,0.52828,96803.0,96802.0,0.00022407]
[1738860624055,0.52628,96803.0,96802.0,0.00022407]
[1738860624273,0.52628,96803.0,96802.0,0.15517907]
[1738860624480,0.52928,96803.0,96802.0,0.15517907]
[1738860625046,0.52928,96803.0,96802.0,0.00022407]
[1738860625474,0.57698,96803.0,96802.0,0.00022407]
[1738860625606,0.60815557,96803.0,96802.0,0.00022407]
[1738860625811,0.80662888,96803.0,96802.0,0.00022407]
[1738860626244,0.80462888,96803.0,96802.0,0.00022407]
[1738860626656,0.88392888,96803.0,96802.0,0.00022407]
[1738860626901,1.03888188,96803.0,96802.0,0.00022407]
[1738860627103,1.18988188,96803.0,96802.0,0.00022407]
[1738860627335,1.19188188,96803.0,96802.0,0.00022407]
[1738860627686,1.19088188,96803.0,96802.0,0.00022407]
[1738860629062,1.19188188,96803.0,96802.0,0.00022407]
[1738860629215,1.21221395,96803.0,96802.0,0.00022407]
[1738860629618,1.11524429,96803.0,96802.0,0.00022407]
[1738860630020,0.314957,96801.0,96800.0,4e-05]
[1738860630230,1.34301622,96801.0,96800.0,4e-05]
[1738860630449,0.01,96774.0,96773.0,0.27478828]
[1738860630654,0.66939922,96774.0,96773.0,0.27478828]
[1738860631878,0.66939922,96774.0,96773.0,0.27836228]
[1738860633058,0.62878365,96774.0,96773.0,0.27836228]
[1738860633330,0.52828,96774.0,96773.0,0.43336328]
[1738860633562,0.51928,96774.0,96773.0,0.43336328]
[1738860633716,0.51628,96774.0,96773.0,0.43336328]
[1738860633920,0.51828,96774.0,96773.0,0.43336328]
[1738860634132,0.52328,96774.0,96773.0,1.24686693]
[1738860634329,0.51828,96774.0,96773.0,1.27799358]
[1738860635469,0.51728,96774.0,96773.0,1.27799358]
[1738860636524,0.51728,96774.0,96773.0,1.28199358]
[1738860637116,0.51628,96774.0,96773.0,1.27799358]
[1738860637490,0.51728,96774.0,96773.0,1.27899358]
[1738860637743,0.51628,96774.0,96773.0,1.27799358]
[1738860637946,0.51628,96774.0,96773.0,1.27899358]
[1738860638107,0.51728,96774.0,96773.0,0.9826272]
[1738860638308,0.51728,96774.0,96773.0,0.9816272]
[1738860638515,0.51828,96774.0,96773.0,0.9866272]
[1738860638922,0.51828,96774.0,96773.0,0.9856272]
[1738860638923,0.51628,96774.0,96773.0,0.9856272]
[1738860639159,0.51628,96774.0,96773.0,0.9816272]
[1738860639483,0.51628,96774.0,96773.0,0.9846272]
[1738860639615,0.52274392,96774.0,96773.0,0.9846272]
[1738860640397,0.52374392,96774.0,96773.0,0.9856272]
[1738860640599,0.52274392,96774.0,96773.0,0.9846272]
[1738860640747,0.52374392,96774.0,96773.0,0.9856272]
[1738860642145,0.52374392,96774.0,96773.0,0.98585148]
[1738860642146,0.51728,96774.0,96773.0,0.98585148]
[1738860642556,0.52728,96774.0,96773.0,0.98585148]
[1738860642763,0.52728,96774.0,96773.0,0.1730632]
[1738860643540,0.52628,96774.0,96773.0,0.1720632]
[1738860643913,0.56601722,96774.0,96773.0,0.00479828]
[1738860644123,0.56601722,96774.0,96773.0,0.00379828]
[1738860644321,0.59720029,96774.0,96773.0,0.00379828]
[1738860644588,0.59720029,96774.0,96773.0,0.00122428]
[1738860644791,0.60366533,96774.0,96773.0,0.00022428]
[1738860644999,0.60366533,96774.0,96773.0,0.00478652]
[1738860645205,0.60566533,96774.0,96773.0,0.00122428]
[1738860645406,0.57448226,96774.0,96773.0,0.00478652]
[1738860645692,0.67698591,96774.0,96773.0,0.00022428]
[1738860645894,1.14526235,96774.0,96773.0,0.00022428]
[1738860646250,0.397708,96769.0,96768.0,0.00022428]
[1738860646450,0.83559174,96769.0,96768.0,0.00022428]
[1738860646654,1.40127174,96769.0,96768.0,0.00022428]
[1738860647362,1.40127174,96769.0,96743.0,0.538]
[1738860647363,0.155034,96753.0,96743.0,0.538]
[1738860647584,0.22071213,96752.0,96732.0,0.75519835]
[1738860647783,0.22071213,96752.0,96750.0,0.00358561]
[1738860647784,0.03117644,96751.0,96750.0,0.00358561]
[1738860647989,0.74562204,96751.0,96736.0,0.15506]
[1738860648186,0.19487213,96750.0,96732.0,0.538]
[1738860648465,0.70986009,96750.0,96749.0,0.00122428]
[1738860649480,0.68514869,96750.0,96749.0,0.15626428]
[1738860649687,0.68514869,96750.0,96749.0,0.0038109]
[1738860650092,0.68514869,96750.0,96749.0,0.00022428]
[1738860650298,0.58264504,96750.0,96749.0,0.1598509]
[1738860650482,0.59208504,96750.0,96749.0,0.15626428]
[1738860650868,0.59208504,96750.0,96749.0,0.0048109]
[1738860651247,0.59208504,96750.0,96749.0,0.00122428]
[1738860651461,0.59208504,96750.0,96749.0,0.0038109]
[1738860651964,0.59208504,96750.0,96749.0,0.43463918]
[1738860651965,0.54218504,96750.0,96749.0,0.43463918]
[1738860652118,0.53218504,96750.0,96749.0,0.43463918]
[1738860652323,0.54218504,96750.0,96749.0,0.43463918]
[1738860652517,0.54218504,96750.0,96749.0,0.43363918]
[1738860652729,0.54218504,96750.0,96749.0,0.43463918]
[1738860653104,0.53572,96750.0,96749.0,0.43463918]
[1738860653559,0.51628,96750.0,96749.0,0.43463918]
[1738860653728,0.51628,96750.0,96749.0,0.53714283]
[1738860653926,0.51628,96750.0,96749.0,0.71014283]
[1738860655254,0.51628,96750.0,96749.0,0.70914283]
[1738860655451,0.51728,96750.0,96749.0,0.71014283]
[1738860655655,0.51728,96750.0,96749.0,0.58463918]
[1738860656012,0.51728,96750.0,96749.0,0.58363918]
[1738860656212,0.51728,96750.0,96749.0,0.58563918]
[1738860656741,0.51628,96750.0,96749.0,0.58363918]
[1738860657247,0.51728,96750.0,96749.0,0.58863918]
[1738860657632,0.60438,96750.0,96749.0,0.43863918]
[1738860657879,0.51728,96750.0,96749.0,0.43863918]
[1738860658088,0.52728,96750.0,96749.0,0.43863918]
[1738860658427,0.51728,96750.0,96749.0,0.43663918]
[1738860658854,0.52374542,96750.0,96749.0,0.43763918]
[1738860659473,0.52374542,96750.0,96749.0,0.43663918]
[1738860659675,0.53374542,96750.0,96749.0,0.43863918]
[1738860659878,0.53274542,96750.0,96749.0,0.43563918]
[1738860661072,0.53274542,96750.0,96749.0,0.43363918]
[1738860661261,0.53274542,96750.0,96749.0,0.43563918]
[1738860661462,0.53274542,96750.0,96749.0,0.28059918]
[1738860661667,0.53274542,96750.0,96749.0,0.27959918]
[1738860661668,0.66274542,96750.0,96749.0,0.27959918]
[1738860661868,0.66274542,96750.0,96749.0,0.43463918]
[1738860662254,0.6625263,96750.0,96749.0,0.43463918]
[1738860662684,0.67287251,96750.0,96749.0,0.27959918]
[1738860662873,0.67287251,96750.0,96749.0,0.43363918]
[1738860663081,0.77537616,96750.0,96749.0,0.0048109]
[1738860663286,0.93041416,96750.0,96749.0,0.00122428]
[1738860663484,0.80645496,96750.0,96749.0,0.00322428]
[1738860663797,0.77537616,96750.0,96749.0,0.00122428]
[1738860664117,0.96148793,96750.0,96749.0,0.00322428]
[1738860664297,1.21399158,96750.0,96749.0,0.00322428]
[1738860664501,1.21399158,96750.0,96749.0,0.00122428]
[1738860664652,1.06695358,96750.0,96749.0,0.00022428]
[1738860665060,1.06095358,96750.0,96749.0,0.00022428]
[1738860665300,0.15,96749.0,96733.0,0.155065]
[1738860665500,0.13486965,96748.0,96733.0,0.155065]
[1738860665698,0.03107377,96747.0,96734.0,0.00361216]
[1738860665903,0.01,96735.0,96734.0,0.15867616]
[1738860666062,0.52606088,96735.0,96734.0,0.15867616]
[1738860666659,0.52606088,96735.0,96734.0,0.00361216]
[1738860666660,0.60636088,96735.0,96734.0,0.00361216]
[1738860666863,0.01,96732.0,96721.0,0.155084]
[1738860667066,0.52606088,96732.0,96731.0,0.00033923]
[1738860667689,0.52606088,96732.0,96731.0,0.00395592]
[1738860668105,0.52606088,96732.0,96731.0,0.00495592]
[1738860668306,0.54287251,96732.0,96731.0,0.00133923]
[1738860668476,0.54287251,96732.0,96731.0,0.15640823]
[1738860668701,0.54287251,96732.0,96731.0,0.16002492]
[1738860668961,0.54287251,96732.0,96731.0,0.19218625]
[1738860669237,0.53287251,96732.0,96731.0,0.97352857]
[1738860669436,0.53287251,96732.0,96731.0,0.98467616]
[1738860669985,0.5225263,96732.0,96731.0,0.98367616]
[1738860670194,0.5225263,96732.0,96731.0,0.85717251]
[1738860670983,0.5225263,96732.0,96731.0,0.98267616]
[1738860671208,0.5235263,96732.0,96731.0,0.86117251]
[1738860671577,0.54387251,96732.0,96731.0,0.70717251]
[1738860671757,0.54387251,96732.0,96731.0,0.01810351]
[1738860671964,0.54487251,96732.0,96731.0,0.01810351]
[1738860672128,0.54387251,96732.0,96731.0,0.01048682]
[1738860672321,0.5335263,96732.0,96731.0,0.01610159]
[1738860672541,0.59472619,96732.0,96731.0,0.005954]
[1738860672737,0.59472619,96732.0,96731.0,0.003954]
[1738860673146,0.5335263,96732.0,96731.0,0.161023]
[1738860673367,0.5345263,96732.0,96731.0,0.165023]
[1738860673541,0.5345263,96732.0,96731.0,0.163023]
[1738860673753,0.5325263,96732.0,96731.0,0.159023]
[1738860673947,0.5335263,96732.0,96731.0,0.159023]
[1738860674648,0.5345263,96732.0,96731.0,0.159023]
[1738860675696,0.5345263,96732.0,96731.0,0.97181128]
[1738860676200,0.5245263,96732.0,96731.0,1.24731493]
[1738860676562,0.5225263,96732.0,96731.0,1.24731493]
[1738860676787,0.5235263,96732.0,96731.0,1.24731493]
[1738860677186,0.5235263,96732.0,96731.0,1.24831493]
[1738860677369,0.5235263,96732.0,96731.0,1.25231493]
[1738860677575,0.5225263,96732.0,96731.0,1.24831493]
[1738860678036,0.5235263,96732.0,96731.0,1.25231493]
[1738860678242,0.33439946,96732.0,96731.0,1.24831493]
[1738860678394,0.33439946,96732.0,96731.0,1.26851888]
[1738860678599,0.33539946,96732.0,96731.0,1.27251888]
[1738860678808,0.33539946,96732.0,96731.0,1.27574316]
[1738860679264,0.33539946,96732.0,96731.0,1.27274316]
[1738860679513,0.27751215,96732.0,96731.0,1.27574316]
[1738860679713,0.27551215,96732.0,96731.0,1.27174316]
[1738860680087,0.27651215,96732.0,96731.0,1.27274316]
[1738860680252,0.26627065,96732.0,96731.0,1.27174316]
[1738860680703,0.26727065,96732.0,96731.0,1.27574316]
[1738860680863,0.26527065,96732.0,96731.0,1.27174316]
[1738860681405,0.26527065,96732.0,96731.0,1.26874316]
[1738860681848,0.24825064,96732.0,96731.0,1.27574316]
[1738860682257,0.0001069,96750.0,96731.0,1.27574316]
[1738860682258,0.0001069,96750.0,96749.0,0.15504]
[1738860682459,0.0001069,96750.0,96749.0,0.43054365]
[1738860682668,0.0001069,96750.0,96749.0,0.4341417]
[1738860683080,0.5169069,96750.0,96749.0,0.4341417]
[1738860683439,0.5169069,96750.0,96749.0,1.12242633]
[1738860683638,0.0758,96797.0,96749.0,1.12242633]
[1738860683639,0.01,96788.0,96773.0,0.155001]
[1738860683854,0.01,96779.0,96773.0,0.43336272]
[1738860684053,0.08191895,96794.0,96773.0,0.43336272]
[1738860684054,0.01,96775.0,96773.0,0.43336272]
[1738860685124,0.01,96775.0,96773.0,0.43350195]
[1738860685295,0.5267769,96774.0,96773.0,0.43350195]
[1738860685500,0.6087769,96774.0,96773.0,0.27850095]
[1738860685678,0.6087769,96774.0,96773.0,0.43350195]
[1738860685878,0.6087769,96774.0,96773.0,0.00471267]
[1738860686200,0.6087769,96774.0,96773.0,0.00113923]
[1738860686201,0.77687824,96774.0,96773.0,0.00113923]
[1738860686433,0.71128055,96774.0,96773.0,0.00013923]
[1738860686545,0.71228055,96774.0,96773.0,0.00113923]
[1738860687002,0.71228055,96774.0,96773.0,0.15871101]
[1738860687220,0.6017769,96774.0,96773.0,0.15871101]
[1738860687422,0.6117769,96774.0,96773.0,0.15871101]
[1738860687632,0.6097769,96774.0,96773.0,0.00371001]
[1738860687838,0.6107769,96774.0,96773.0,0.00371001]
[1738860688034,0.6107769,96774.0,96773.0,0.00013923]
[1738860688248,0.6087769,96774.0,96773.0,0.00013923]
[1738860688424,0.6117769,96774.0,96773.0,0.15871029]
[1738860688830,0.6107769,96774.0,96773.0,0.15871029]
[1738860689341,0.6117769,96774.0,96773.0,0.15871029]
[1738860689558,0.61824176,96774.0,96773.0,0.15871029]
[1738860689760,0.61724176,96774.0,96773.0,0.00370929]
[1738860689986,0.75768019,96774.0,96773.0,0.00370929]
[1738860690139,0.71974541,96774.0,96773.0,0.00370929]
[1738860690350,0.87474541,96774.0,96773.0,0.00370929]
[1738860690579,0.87274541,96774.0,96773.0,0.00013923]
[1738860690972,0.87474541,96774.0,96773.0,0.00013923]
[1738860691175,0.82224906,96774.0,96773.0,0.00013923]
[1738860691553,0.82424906,96774.0,96773.0,0.00013923]
[1738860691761,0.82024906,96774.0,96773.0,0.00013923]
[1738860691964,0.97524906,96774.0,96773.0,0.00013923]
[1738860692183,0.97824906,96774.0,96773.0,0.00013923]
[1738860692392,0.97924906,96774.0,96773.0,0.00013923]
[1738860693186,0.0875,96747.0,96743.0,0.206733]
[1738860693355,0.01,96741.0,96740.0,0.48166559]
[1738860693556,0.52667,96741.0,96740.0,0.00013931]
[1738860693998,0.52667,96741.0,96740.0,0.15519331]
[1738860694637,0.54848205,96741.0,96740.0,0.15519331]
[1738860694838,0.43511205,96741.0,96740.0,1.22048524]
[1738860695033,0.0767,96771.0,96741.0,0.173]
[1738860695250,0.0001069,96774.0,96773.0,0.155001]
[1738860695438,0.0001069,96774.0,96773.0,0.81850465]
[1738860695790,9e-07,96774.0,96773.0,0.96850465]
[1738860696306,0.008312,96778.0,96777.0,0.304995]
[1738860696534,0.0867,96807.0,96800.0,0.154958]
[1738860696714,0.0101068,96801.0,96800.0,0.692958]
[1738860696953,0.0101068,96801.0,96800.0,0.69649968]
[1738860697319,0.5266368,96801.0,96800.0,0.69649968]
[1738860700639,0.5266368,96801.0,96800.0,0.69749968]
[1738860701241,0.5266368,96801.0,96800.0,0.70773846]
[1738860701442,0.5266368,96801.0,96800.0,0.15949968]
[1738860701889,0.5266368,96801.0,96800.0,0.15849968]
[1738860702088,0.5276368,96801.0,96800.0,0.16549968]
[1738860702275,0.5276368,96801.0,96800.0,0.16749968]
[1738860702861,0.84553113,96801.0,96800.0,0.01254168]
[1738860703043,0.97503113,96801.0,96800.0,0.01607991]
[1738860703242,0.97403113,96801.0,96800.0,0.002]
[1738860703756,0.75864045,96801.0,96800.0,0.003]
[1738860703988,0.01,96788.0,96780.0,0.17241393]
[1738860704197,0.01,96788.0,96784.0,0.154983]
[1738860704402,0.52653,96788.0,96787.0,0.54691274]
[1738860705634,0.52753,96788.0,96787.0,0.54691274]
[1738860705833,0.71103365,96788.0,96770.0,0.206673]
[1738860706054,0.01,96774.0,96770.0,0.206673]
[1738860706264,0.52653,96774.0,96770.0,0.155005]
[1738860706845,0.91163365,96774.0,96758.0,0.155025]
[1738860707050,0.91163365,96774.0,96750.0,0.17241393]
[1738860707451,0.94265818,96774.0,96760.0,0.17241393]
[1738860707653,0.91163365,96774.0,96762.0,0.155018]
[1738860707853,0.91809964,96774.0,96773.0,0.00422428]
[1738860708065,0.91809964,96774.0,96760.0,0.32743593]
[1738860708066,0.01,96761.0,96760.0,0.32743593]
[1738860708397,0.52653,96761.0,96760.0,0.15516131]
[1738860708597,0.52653,96761.0,96760.0,0.1653555]
[1738860708916,0.52653,96761.0,96760.0,0.15516131]
[1738860709468,0.54334041,96761.0,96760.0,0.15516131]
[1738860710487,0.54334041,96761.0,96760.0,0.15716131]
[1738860710692,0.54334041,96761.0,96760.0,0.00013931]
[1738860710899,0.54334041,96761.0,96760.0,0.00213931]
[1738860711094,0.54334041,96761.0,96760.0,0.15716131]
[1738860711303,0.54334041,96761.0,96760.0,0.15516131]
[1738860711554,0.54434041,96761.0,96760.0,0.16417249]
[1738860711923,0.54334041,96761.0,96760.0,0.16417249]
[1738860712144,0.54434041,96761.0,96760.0,0.16417249]
[1738860712336,0.54534041,96761.0,96760.0,0.16439677]
[1738860712514,0.53499599,96761.0,96760.0,0.16439677]
[1738860713500,0.53399599,96761.0,96760.0,0.16439677]
[1738860713641,0.53299599,96761.0,96760.0,0.16439677]
[1738860714276,0.52299599,96761.0,96760.0,0.97718505]
[1738860714479,0.52299599,96761.0,96760.0,1.15018505]
[1738860714677,0.52299599,96761.0,96760.0,1.15118505]
[1738860715061,0.52299599,96761.0,96760.0,1.15018505]
[1738860715310,0.52299599,96761.0,96760.0,1.2526887]
[1738860715526,0.52299599,96761.0,96760.0,1.2536887]
[1738860716854,0.52299599,96761.0,96760.0,1.2526887]
[1738860717115,0.53299599,96761.0,96760.0,1.12918505]
[1738860717310,0.53299599,96761.0,96760.0,0.98018505]
[1738860717502,0.53299599,96761.0,96760.0,0.97718505]
[1738860717793,0.53299599,96761.0,96760.0,0.17439677]
[1738860717794,0.53399599,96761.0,96760.0,0.17439677]
[1738860717938,0.63649964,96761.0,96760.0,0.01937477]
[1738860718144,0.9332706,96761.0,96760.0,0.01237477]
[1738860718343,0.96534024,96761.0,96760.0,0.00736359]
[1738860718552,0.96534024,96761.0,96760.0,0.00936359]
[1738860718753,0.9342706,96761.0,96760.0,0.00236359]
[1738860718959,0.9342706,96761.0,96760.0,0.00436359]
[1738860719159,0.9342706,96761.0,96745.0,0.48151428]
[1738860719160,0.206698,96760.0,96750.0,0.155038]
[1738860719428,0.10379575,96759.0,96753.0,0.155033]
[1738860719617,0.62032575,96759.0,96754.0,0.155032]
[1738860719832,0.1389,96746.0,96745.0,0.27478828]
[1738860720037,1.12407865,96746.0,96745.0,0.27478828]
[1738860720249,1.12407865,96746.0,96733.0,0.27478828]
[1738860720250,0.01,96734.0,96733.0,0.27478828]
[1738860720379,0.78409765,96734.0,96733.0,0.27478828]
[1738860720792,0.86289765,96734.0,96733.0,0.27478828]
[1738860721028,0.82715004,96734.0,96717.0,0.27478828]
[1738860721228,0.240482,96723.0,96717.0,0.27478828]
[1738860721427,1.06121565,96723.0,96717.0,0.27478828]
[1738860722256,0.90613365,96723.0,96717.0,0.27478828]
[1738860722773,0.92294639,96723.0,96717.0,0.27478828]
[1738860723114,0.91294639,96723.0,96721.0,0.155084]
[1738860723330,0.73064639,96723.0,96721.0,0.155084]
[1738860723528,0.62114274,96723.0,96721.0,0.155084]
[1738860723702,0.63114274,96723.0,96721.0,0.155084]
[1738860723908,0.63214274,96723.0,96721.0,0.155084]
[1738860724121,0.62914274,96723.0,96721.0,0.155084]
[1738860724328,0.62814274,96723.0,96721.0,0.155084]
[1738860724568,0.61874274,96723.0,96721.0,0.155084]
[1738860724764,0.62174274,96723.0,96721.0,0.155084]
[1738860724957,0.78536066,96723.0,96718.0,0.155089]
[1738860725158,0.77501391,96723.0,96718.0,0.155089]